bitfinex/quotes_BTCUSD_20230117
["timestamp","ask_amount","ask_price","bid_price","bid_amount"]
[1673949287198,0.1954783,21180.0,21179.0,2.97479816]
[1673949288471,0.1954783,21180.0,21179.0,2.64616784]
[1673949293306,0.1954783,21180.0,21179.0,2.34616784]
[1673949294280,0.1954783,21180.0,21179.0,2.64616784]
[1673949294809,0.1954783,21180.0,21179.0,1.97746784]
[1673949299613,0.1954783,21180.0,21179.0,1.56636784]
[1673949299867,0.1954783,21180.0,21179.0,0.591365]
[1673949300206,0.53681013,21180.0,21179.0,0.008]
[1673949300380,0.5172623,21180.0,21179.0,0.008]
[1673949300643,0.51762184,21180.0,21179.0,0.008]
[1673949303178,0.5172623,21180.0,21179.0,0.008]
[1673949303425,0.51762184,21180.0,21179.0,0.008]
[1673949305465,0.67981305,21180.0,21179.0,0.008]
[1673949306010,0.51762184,21180.0,21179.0,0.008]
[1673949306260,0.5172623,21180.0,21179.0,0.008]
[1673949306589,0.50062184,21180.0,21178.0,0.1162601]
[1673949306788,0.17883784,21180.0,21179.0,0.001]
[1673949307051,0.58262184,21180.0,21179.0,0.001]
[1673949307570,0.7866683,21180.0,21179.0,0.001]
[1673949307885,0.9362751,21180.0,21179.0,0.001]
[1673949308090,0.58262184,21180.0,21179.0,0.001]
[1673949308345,0.72406006,21180.0,21179.0,0.001]
[1673949309623,0.83566006,21180.0,21179.0,0.001]
[1673949310895,0.93566006,21180.0,21179.0,0.001]
[1673949311151,1.30437872,21180.0,21179.0,0.001]
[1673949311401,0.83566006,21180.0,21179.0,0.001]
[1673949311847,1.00643688,21180.0,21179.0,0.001]
[1673949312396,1.28939817,21180.0,21179.0,0.001]
[1673949312899,1.28939817,21180.0,21175.0,0.10558164]
[1673949312900,0.48928636,21179.0,21175.0,0.10558164]
[1673949313159,0.321784,21178.0,21175.0,0.10558164]
[1673949313430,0.321784,21177.0,21175.0,0.10558164]
[1673949313696,0.1116,21178.0,21175.0,0.10558164]
[1673949314175,0.1116,21178.0,21175.0,0.11258164]
[1673949314713,0.321784,21177.0,21175.0,0.11258164]
[1673949314979,0.321784,21176.0,21175.0,0.007]
[1673949315241,0.1116,21178.0,21174.0,0.98109368]
[1673949315545,0.008,21177.0,21175.0,0.007]
[1673949315759,0.321784,21176.0,21175.0,0.007]
[1673949316018,0.008,21177.0,21175.0,0.007]
[1673949316298,0.25289433,21178.0,21174.0,0.98109368]
[1673949316542,0.1196,21178.0,21174.0,1.17881963]
[1673949316833,0.4025258,21178.0,21174.0,0.98109368]
[1673949317052,0.07737,21176.0,21175.0,0.007]
[1673949317325,0.391154,21176.0,21174.0,0.00673706]
[1673949317600,0.321784,21175.0,21174.0,0.00673706]
[1673949318381,0.321784,21175.0,21174.0,0.01273706]
[1673949318640,0.45909074,21175.0,21174.0,0.00673706]
[1673949318899,0.382784,21175.0,21174.0,0.00773706]
[1673949319155,0.321784,21175.0,21174.0,0.00673706]
[1673949319486,1.18740763,21175.0,21174.0,0.00773706]
[1673949319688,1.10340763,21175.0,21174.0,0.00673706]
[1673949319942,1.10340763,21175.0,21174.0,0.00773706]
[1673949319943,1.21182122,21175.0,21174.0,0.00773706]
[1673949320205,1.12782122,21175.0,21174.0,0.00673706]
[1673949320464,0.98652689,21175.0,21174.0,0.00673706]
[1673949320734,0.98652689,21175.0,21174.0,0.00773706]
[1673949320735,1.07152689,21175.0,21174.0,0.00773706]
[1673949321486,0.95992689,21175.0,21174.0,0.00773706]
[1673949322259,1.71997102,21175.0,21174.0,0.00773706]
[1673949322533,2.45006704,21175.0,21174.0,0.00773706]
[1673949323846,2.16227791,21175.0,21174.0,0.00773706]
[1673949324635,2.37421941,21175.0,21174.0,0.00773706]
[1673949324894,2.16227791,21175.0,21174.0,0.00773706]
[1673949325991,2.02098358,21175.0,21174.0,0.00773706]
[1673949326263,2.16227791,21175.0,21174.0,0.00773706]
[1673949326517,2.61982728,21175.0,21174.0,0.00773706]
[1673949326782,2.47853295,21175.0,21174.0,0.00773706]
[1673949327058,2.83176878,21175.0,21174.0,0.00773706]
[1673949327607,2.83176878,21175.0,21171.0,0.00815624]
[1673949327608,0.00677187,21173.0,21171.0,0.00815624]
[1673949327862,0.321784,21172.0,21171.0,0.00815624]
[1673949329106,0.561784,21172.0,21171.0,0.00915624]
[1673949329375,0.561784,21172.0,21171.0,0.00815624]
[1673949329619,0.735384,21172.0,21171.0,0.00915624]
[1673949330386,0.673384,21172.0,21171.0,0.00815624]
[1673949330656,0.759384,21172.0,21171.0,0.00815624]
[1673949330893,0.673384,21172.0,21171.0,0.00815624]
[1673949331412,0.67374354,21172.0,21171.0,0.00815624]
[1673949331961,0.75974354,21172.0,21171.0,0.00915624]
[1673949334266,0.326,21172.0,21171.0,0.07852624]
[1673949334517,0.326,21172.0,21171.0,0.96167024]
[1673949334777,0.326,21172.0,21171.0,1.07277024]
[1673949335070,0.326,21172.0,21171.0,1.54779061]
[1673949336104,0.24,21172.0,21171.0,1.54679061]
[1673949336372,0.243,21172.0,21171.0,1.55879061]
[1673949336616,0.24,21172.0,21171.0,1.54679061]
[1673949336872,0.248,21172.0,21171.0,1.55979061]
[1673949338712,0.248,21172.0,21171.0,1.67139061]
[1673949339233,0.248,21172.0,21171.0,2.00286271]
[1673949339493,0.248,21172.0,21171.0,1.60202061]
[1673949339769,0.248,21172.0,21171.0,1.30282061]
[1673949340022,0.248,21172.0,21171.0,1.19172061]
[1673949341628,0.248,21172.0,21171.0,1.49172061]
[1673949344230,0.24835954,21172.0,21171.0,1.49172061]
[1673949344465,0.248,21172.0,21171.0,1.49172061]
[1673949344739,0.248,21172.0,21171.0,1.19172061]
[1673949345501,0.24835954,21172.0,21171.0,1.19172061]
[1673949346043,0.24835954,21172.0,21171.0,1.04442061]
[1673949347084,0.24835954,21172.0,21171.0,0.49617661]
[1673949347629,0.248,21172.0,21171.0,0.49617661]
[1673949347881,0.248,21172.0,21171.0,0.87207661]
[1673949348682,0.248,21172.0,21171.0,1.34561119]
[1673949348950,0.248,21172.0,21171.0,1.34442061]
[1673949349719,0.248,21172.0,21171.0,1.42032061]
[1673949351811,0.248,21172.0,21171.0,1.42151119]
[1673949352117,0.248,21172.0,21171.0,1.42032061]
[1673949352906,0.248,21172.0,21171.0,1.12032061]
[1673949353184,0.248,21172.0,21171.0,0.64530024]
[1673949353725,0.248,21172.0,21171.0,0.17295624]
[1673949355097,0.248,21172.0,21171.0,0.29439824]
[1673949357722,0.248,21172.0,21171.0,0.59439824]
[1673949357982,0.248,21172.0,21171.0,1.06674224]
[1673949359470,0.248,21172.0,21171.0,1.20819941]
[1673949359729,0.248,21172.0,21171.0,1.13229941]
[1673949361860,0.248,21172.0,21171.0,0.99084224]
[1673949362967,0.248,21172.0,21171.0,0.69084224]
[1673949364062,0.248,21172.0,21171.0,0.99084224]
[1673949364329,0.248,21172.0,21171.0,0.69084224]
[1673949364878,0.248,21172.0,21171.0,0.99084224]
[1673949365696,0.248,21172.0,21171.0,1.13229941]
[1673949366985,0.248,21172.0,21171.0,0.99084224]
[1673949367243,0.248,21172.0,21171.0,1.13229941]
[1673949367515,0.248,21172.0,21171.0,0.99084224]
[1673949370891,0.248,21172.0,21171.0,0.14259824]
[1673949371142,0.248,21172.0,21171.0,0.02115624]
[1673949371655,0.38922176,21172.0,21171.0,0.14259824]
[1673949371930,0.24792743,21172.0,21171.0,0.02115624]
[1673949372438,0.38922176,21172.0,21171.0,0.02115624]
[1673949375787,0.24792743,21172.0,21171.0,0.02115624]
[1673949376001,0.38922176,21172.0,21171.0,0.02115624]
[1673949376530,0.24792743,21172.0,21171.0,0.02115624]
[1673949377549,0.38922176,21172.0,21171.0,0.02115624]
[1673949378056,0.24792743,21172.0,21171.0,0.02115624]
[1673949379115,1.88202043,21172.0,21171.0,0.02115624]
[1673949379383,3.47624991,21172.0,21171.0,0.02115624]
[1673949379962,2.92062891,21172.0,21171.0,0.00815624]
[1673949380223,2.92062891,21172.0,21171.0,0.01915624]
[1673949380224,1.99913997,21172.0,21171.0,0.01915624]
[1673949380509,1.99913997,21172.0,21169.0,5.637e-05]
[1673949380777,1.15267005,21171.0,21169.0,5.637e-05]
[1673949381070,0.46327094,21170.0,21169.0,5.637e-05]
[1673949381333,0.61866663,21171.0,21169.0,5.637e-05]
[1673949381612,0.83086405,21171.0,21169.0,5.637e-05]
[1673949382131,0.321806,21170.0,21169.0,5.637e-05]
[1673949382389,0.87185615,21170.0,21169.0,5.637e-05]
[1673949383560,0.35366236,21171.0,21169.0,0.00024723]
[1673949383811,0.091,21170.0,21169.0,0.00024723]
[1673949384336,0.09135954,21170.0,21169.0,5.637e-05]
[1673949384612,0.091,21170.0,21169.0,5.637e-05]
[1673949384867,0.54000022,21170.0,21169.0,5.637e-05]
[1673949385169,0.49623946,21170.0,21169.0,5.637e-05]
[1673949385432,0.44935976,21170.0,21169.0,5.637e-05]
[1673949385698,0.9126307,21170.0,21169.0,5.637e-05]
[1673949385959,1.62262918,21170.0,21169.0,5.637e-05]
[1673949386271,1.8145566,21170.0,21169.0,5.637e-05]
[1673949386523,2.58848409,21170.0,21169.0,5.637e-05]
[1673949387041,2.49748409,21170.0,21169.0,5.637e-05]
[1673949387306,1.81431793,21170.0,21169.0,5.637e-05]
[1673949387807,1.59679367,21170.0,21169.0,5.637e-05]
[1673949388057,1.59679247,21170.0,21169.0,5.637e-05]
[1673949388319,1.38483372,21170.0,21169.0,5.637e-05]
[1673949388580,1.68779319,21170.0,21169.0,5.637e-05]
[1673949388864,2.09466087,21170.0,21169.0,5.637e-05]
[1673949389097,2.67750866,21170.0,21169.0,5.637e-05]
[1673949389602,2.16496462,21170.0,21169.0,5.637e-05]
[1673949390109,2.16496414,21170.0,21169.0,5.637e-05]
[1673949390360,2.02369586,21170.0,21169.0,5.637e-05]
[1673949390886,2.16496002,21170.0,21169.0,5.637e-05]
[1673949392140,1.81173345,21170.0,21169.0,5.637e-05]
[1673949392870,1.33453176,21170.0,21169.0,5.637e-05]
[1673949393374,1.47579592,21170.0,21169.0,5.637e-05]
[1673949394137,1.33453176,21170.0,21169.0,5.637e-05]
[1673949394389,1.82669419,21170.0,21169.0,5.637e-05]
[1673949395914,1.47579592,21170.0,21169.0,5.637e-05]
[1673949396646,1.15398992,21170.0,21169.0,5.637e-05]
[1673949396936,1.47579592,21170.0,21169.0,5.637e-05]
[1673949397205,1.79845833,21170.0,21169.0,5.637e-05]
[1673949397959,0.65105976,21170.0,21169.0,5.637e-05]
[1673949398721,1.11412992,21170.0,21169.0,5.637e-05]
[1673949399677,1.37646809,21170.0,21169.0,5.637e-05]
[1673949399955,1.00342992,21170.0,21169.0,5.637e-05]
[1673949400218,0.86216576,21170.0,21169.0,5.637e-05]
[1673949401480,1.21539233,21170.0,21169.0,5.637e-05]
[1673949401989,1.68775833,21170.0,21169.0,5.637e-05]
[1673949402486,2.2822975,21170.0,21169.0,5.637e-05]
[1673949402754,0.86216576,21170.0,21169.0,5.637e-05]
[1673949403012,0.54000022,21170.0,21169.0,5.637e-05]
[1673949404095,0.54000022,21170.0,21169.0,0.06942637]
[1673949405588,0.091,21170.0,21169.0,0.19088537]
[1673949405847,0.09090668,21170.0,21169.0,0.60258537]
[1673949406099,0.09090668,21170.0,21169.0,1.07497337]
[1673949406630,0.23992743,21172.0,21169.0,0.95351437]
[1673949406888,0.082,21170.0,21169.0,1.29574547]
[1673949407149,0.082,21170.0,21169.0,1.07597337]
[1673949407420,0.23992743,21172.0,21169.0,1.00560337]
[1673949407655,0.23992743,21172.0,21170.0,0.1106]
[1673949407910,0.23992743,21172.0,21170.0,0.4106]
[1673949408160,0.23992743,21172.0,21170.0,0.1106]
[1673949408431,0.23992743,21172.0,21170.0,0.11202699]
[1673949408938,0.24028697,21172.0,21170.0,0.11202699]
[1673949409203,0.24028697,21172.0,21170.0,0.1106]
[1673949409461,0.32292743,21172.0,21170.0,0.1116]
[1673949409687,0.4641558,21172.0,21170.0,0.001]
[1673949409934,0.46451534,21172.0,21170.0,0.001]
[1673949410697,0.32328697,21172.0,21170.0,0.001]
[1673949410954,0.46451534,21172.0,21170.0,0.001]
[1673949411234,0.32328697,21172.0,21170.0,0.001]
[1673949412220,0.32292743,21172.0,21170.0,0.001]
[1673949413267,0.4641558,21172.0,21170.0,0.001]
[1673949415749,0.46451534,21172.0,21170.0,0.001]
[1673949416220,0.4641558,21172.0,21170.0,0.001]
[1673949417495,0.4641558,21172.0,21170.0,0.301]
[1673949417750,0.32292743,21172.0,21170.0,0.301]
[1673949418535,0.4641558,21172.0,21170.0,0.301]
[1673949419088,0.32292743,21172.0,21170.0,0.301]
[1673949419610,0.32292743,21172.0,21170.0,0.77336]
[1673949419868,0.32292743,21172.0,21171.0,0.121443]
[1673949420134,0.32292743,21172.0,21170.0,0.77336]
[1673949420397,0.32292743,21172.0,21170.0,0.47336]
[1673949420398,0.32328697,21172.0,21170.0,0.47336]
[1673949420708,0.32292743,21172.0,21171.0,0.3]
[1673949421955,0.23992743,21172.0,21171.0,0.3]
[1673949422209,0.32292743,21172.0,21171.0,0.001]
[1673949422756,0.32292743,21172.0,21170.0,0.13130558]
[1673949422994,0.32292743,21172.0,21170.0,0.43130558]
[1673949423340,0.32292743,21172.0,21170.0,0.43137692]
[1673949425528,0.23992743,21172.0,21170.0,0.43137692]
[1673949425842,0.32292743,21172.0,21171.0,0.1117]
[1673949426081,0.32292743,21172.0,21171.0,0.533142]
[1673949426617,0.32292743,21172.0,21171.0,0.4117]
[1673949427116,0.23992743,21172.0,21171.0,0.1117]
[1673949427326,0.36188102,21172.0,21171.0,0.1127]
[1673949427860,0.36188102,21172.0,21171.0,0.534142]
[1673949428398,0.36188102,21172.0,21171.0,0.1127]
[1673949428663,0.36188102,21172.0,21171.0,1.006486]
[1673949430764,0.36188102,21172.0,21171.0,1.118086]
[1673949434670,0.36188102,21172.0,21171.0,1.59276409]
[1673949434969,0.36188102,21172.0,21171.0,2.88622774]
[1673949435199,0.29677984,21172.0,21171.0,2.67405125]
[1673949435468,0.29677984,21172.0,21171.0,3.0272299]
[1673949435981,0.21377984,21172.0,21171.0,2.75638678]
[1673949437017,0.22077984,21172.0,21171.0,2.60079101]
[1673949437278,0.22077984,21172.0,21171.0,2.63005348]
[1673949437539,0.22077984,21172.0,21171.0,2.77132856]
[1673949437791,0.22077984,21172.0,21171.0,3.05420146]
[1673949438013,0.22077984,21172.0,21171.0,2.77166706]
[1673949438235,0.22077984,21172.0,21171.0,2.91259869]
[1673949438745,0.22077984,21172.0,21171.0,2.77129226]
[1673949439243,0.22077984,21172.0,21171.0,3.05421315]
[1673949439735,0.22077984,21172.0,21171.0,2.63006719]
[1673949439991,0.22077984,21172.0,21171.0,2.77135032]
[1673949440489,0.22077984,21172.0,21171.0,2.63006719]
[1673949440736,0.22077984,21172.0,21171.0,2.7713253]
[1673949441248,0.22077984,21172.0,21171.0,2.63006719]
[1673949442271,0.22077984,21172.0,21171.0,2.70068912]
[1673949442525,0.22077984,21172.0,21171.0,3.05421315]
[1673949442819,0.22077984,21172.0,21171.0,2.70068912]
[1673949443344,0.22077984,21172.0,21171.0,2.77166706]
[1673949444388,0.22077984,21172.0,21171.0,2.91262665]
[1673949445145,0.22077984,21172.0,21171.0,2.24322665]
[1673949445388,0.22077984,21172.0,21171.0,2.10226706]
[1673949446631,0.22077984,21172.0,21171.0,2.24319506]
[1673949446884,0.22077984,21172.0,21171.0,1.96065104]
[1673949447408,0.22077984,21172.0,21171.0,1.76868481]
[1673949447921,0.22077984,21172.0,21171.0,2.10089317]
[1673949448496,0.22077984,21172.0,21171.0,1.76868481]
[1673949448789,0.22077984,21172.0,21171.0,1.76972036]
[1673949449084,0.22077984,21172.0,21171.0,1.5981487]
[1673949449619,0.22077984,21172.0,21171.0,1.4864487]
[1673949449898,0.22077984,21172.0,21171.0,1.79874608]
[1673949450432,0.22077984,21172.0,21171.0,1.65746491]
[1673949450684,0.22077984,21172.0,21171.0,1.65746488]
[1673949452207,0.22077984,21172.0,21171.0,1.51621188]
[1673949452461,0.22077984,21172.0,21171.0,1.65746457]
[1673949452724,0.22077984,21172.0,21171.0,1.65746465]
[1673949452949,0.22077984,21172.0,21171.0,2.13096426]
[1673949453200,0.22077984,21172.0,21171.0,1.99003626]
[1673949453710,0.22077984,21172.0,21171.0,1.79874301]
[1673949455712,0.16706313,21172.0,21171.0,1.6578279]
[1673949455941,0.16706313,21172.0,21171.0,1.79883726]
[1673949456192,0.16706313,21172.0,21171.0,1.65754577]
[1673949456451,0.16706313,21172.0,21171.0,1.4865279]
[1673949456995,0.16706313,21172.0,21171.0,1.51317128]
[1673949457245,0.16706313,21172.0,21171.0,1.79576179]
[1673949458289,0.16706313,21172.0,21171.0,1.93734294]
[1673949459299,0.16706313,21172.0,21171.0,1.65475243]
[1673949461057,0.16706313,21172.0,21171.0,1.93745101]
[1673949461587,0.16706313,21172.0,21171.0,1.18667316]
[1673949461992,0.16706313,21172.0,21171.0,1.11833793]
[1673949462140,0.16706313,21172.0,21171.0,1.11833887]
[1673949462926,0.16706313,21172.0,21171.0,0.97698307]
[1673949463174,0.16706313,21172.0,21171.0,1.27698307]
[1673949463423,0.16706313,21172.0,21171.0,1.41836521]
[1673949464441,0.16706313,21172.0,21171.0,0.62872614]
[1673949464677,0.48886913,21172.0,21171.0,0.487344]
[1673949465708,0.48886913,21172.0,21171.0,0.787344]
[1673949466460,0.16706313,21172.0,21171.0,0.487344]
[1673949466994,0.48886913,21172.0,21171.0,0.487344]
[1673949467459,0.48186913,21172.0,21171.0,0.472344]
[1673949467711,0.16806313,21172.0,21171.0,0.78770637]
[1673949467958,0.16006313,21172.0,21171.0,0.77370637]
[1673949468180,0.16006313,21172.0,21171.0,0.78770637]
[1673949468442,0.16806313,21172.0,21171.0,0.92772614]
[1673949468705,0.16806313,21172.0,21171.0,0.78770637]
[1673949468953,0.16806313,21172.0,21171.0,0.48770637]
[1673949469233,0.16806313,21172.0,21171.0,0.014]
[1673949469555,0.48986913,21172.0,21171.0,0.014]
[1673949470539,0.16806313,21172.0,21171.0,0.014]
[1673949470984,0.16806313,21172.0,21171.0,0.314]
[1673949471762,0.16806313,21172.0,21171.0,0.31413265]
[1673949472048,0.16806313,21172.0,21171.0,0.78647665]
[1673949473834,0.16806313,21172.0,21171.0,0.786344]
[1673949474100,0.16806313,21172.0,21171.0,0.78751883]
[1673949477963,0.16806313,21172.0,21171.0,0.786344]
[1673949478248,0.16806313,21172.0,21171.0,0.78652879]
[1673949478504,0.16806313,21172.0,21171.0,0.786344]
[1673949479043,0.16806313,21172.0,21171.0,0.92791093]
[1673949479322,0.16806313,21172.0,21171.0,0.90797079]
[1673949480105,0.16806313,21172.0,21171.0,0.78652879]
[1673949480664,0.16806313,21172.0,21171.0,0.786344]
[1673949481670,0.16806313,21172.0,21171.0,0.78729375]
[1673949481936,0.16806313,21172.0,21171.0,0.92867589]
[1673949482222,0.16799756,21172.0,21171.0,1.05011789]
[1673949482500,0.16799756,21172.0,21171.0,1.92426891]
[1673949482754,0.16799756,21172.0,21171.0,1.92437117]
[1673949483011,0.16799756,21172.0,21171.0,1.57084714]
[1673949483810,0.16799756,21172.0,21171.0,1.64155993]
[1673949484068,0.16799756,21172.0,21171.0,1.50015448]
[1673949485395,0.16799756,21172.0,21171.0,1.92437117]
[1673949485622,0.16799756,21172.0,21171.0,1.64157394]
[1673949486327,0.16799756,21172.0,21171.0,1.50016288]
[1673949486582,0.16799756,21172.0,21171.0,1.27260758]
[1673949486838,0.16799756,21172.0,21171.0,1.49961184]
[1673949487355,0.16799756,21172.0,21171.0,1.64103266]
[1673949488150,0.16799756,21172.0,21171.0,1.64103179]
[1673949489243,0.16799756,21172.0,21171.0,1.32845872]
[1673949489765,0.16799756,21172.0,21171.0,1.21774895]
[1673949490031,0.16799756,21172.0,21171.0,1.06044946]
[1673949490272,0.16799756,21172.0,21171.0,1.00691293]
[1673949491560,0.16799756,21172.0,21171.0,1.14833288]
[1673949491801,0.16799756,21172.0,21171.0,1.44701356]
[1673949492359,0.16799756,21172.0,21171.0,1.51778169]
[1673949492587,0.16799756,21172.0,21171.0,1.65915494]
[1673949492956,0.16799756,21172.0,21171.0,1.44701356]
[1673949493109,0.16799756,21172.0,21171.0,1.65916117]
[1673949493645,0.16799756,21172.0,21171.0,1.36049109]
[1673949494727,0.16799756,21172.0,21171.0,1.23904909]
[1673949494991,0.16799756,21172.0,21171.0,1.36049109]
[1673949495255,0.16799756,21172.0,21171.0,1.14834446]
[1673949495791,0.16799756,21172.0,21171.0,1.65875222]
[1673949496329,0.16799756,21172.0,21171.0,1.36050428]
[1673949496580,0.16799756,21172.0,21171.0,1.14835765]
[1673949496857,0.16799756,21172.0,21171.0,1.02691565]
[1673949497642,0.16799756,21172.0,21171.0,1.36050428]
[1673949497866,0.16799756,21172.0,21171.0,1.6587562]
[1673949498122,0.16799756,21172.0,21171.0,1.44660957]
[1673949498617,0.16799756,21172.0,21171.0,1.36054881]
[1673949499650,0.16799756,21172.0,21171.0,1.44664404]
[1673949500165,0.16799756,21172.0,21171.0,1.65884487]
[1673949500407,0.16799756,21172.0,21171.0,1.36058716]
[1673949500676,0.16799756,21172.0,21171.0,1.51708881]
[1673949503425,0.16799756,21172.0,21171.0,1.44621542]
[1673949503694,0.16799756,21172.0,21171.0,1.51715053]
[1673949504206,0.16799756,21172.0,21171.0,1.84800015]
[1673949504723,0.16799756,21172.0,21171.0,2.27208345]
[1673949504977,0.16799756,21172.0,21171.0,1.84801083]
[1673949505248,0.16799756,21172.0,21171.0,2.03025942]
[1673949505488,0.16799756,21172.0,21171.0,2.10098261]
[1673949506006,0.16799756,21172.0,21171.0,2.03044943]
[1673949506789,0.16799756,21172.0,21171.0,2.10098261]
[1673949508049,0.13902861,21172.0,21171.0,1.74745858]
[1673949508557,0.13902861,21172.0,21171.0,1.79674979]
[1673949508807,0.13902861,21172.0,21171.0,2.15042844]
[1673949509069,0.13902861,21172.0,21171.0,2.10113723]
[1673949509326,0.13902861,21172.0,21171.0,1.74745858]
[1673949511119,0.13902861,21172.0,21171.0,2.10118299]
[1673949512151,0.13902861,21172.0,21171.0,1.74745858]
[1673949513880,0.13902861,21172.0,21171.0,2.10116544]
[1673949514395,0.13902861,21172.0,21171.0,2.23804151]
[1673949514925,0.13902861,21172.0,21171.0,2.55884208]
[1673949515464,0.13902861,21172.0,21171.0,2.98326794]
[1673949515998,0.13902861,21172.0,21171.0,2.65267622]
[1673949518196,0.13902861,21172.0,21171.0,2.98326794]
[1673949518496,0.13902861,21172.0,21171.0,2.23804151]
[1673949518711,0.13902861,21172.0,21171.0,1.90744979]
[1673949520013,0.13902861,21172.0,21171.0,2.33187565]
[1673949520261,0.06370794,21172.0,21171.0,2.23804151]
[1673949520513,0.06370794,21172.0,21171.0,2.55785199]
[1673949520778,0.06370794,21172.0,21171.0,2.98203368]
[1673949521821,0.00785737,21179.0,21172.0,0.06369906]
[1673949522083,0.00785737,21179.0,21178.0,0.68853802]
[1673949522390,0.00785737,21179.0,21178.0,1.08859016]
[1673949522640,0.00785737,21179.0,21178.0,2.173053]
[1673949522899,0.00785737,21179.0,21178.0,2.061353]
[1673949523176,0.00785737,21179.0,21178.0,1.995964]
[1673949523958,0.00785737,21179.0,21178.0,2.117346]
[1673949526886,0.00785737,21179.0,21178.0,1.995964]
[1673949527167,0.00785737,21179.0,21178.0,2.117346]
[1673949527981,0.00785737,21179.0,21178.0,2.61964613]
[1673949528242,0.00785737,21179.0,21178.0,2.97308415]
[1673949528501,0.00785737,21179.0,21178.0,3.08945976]
[1673949529053,0.00785737,21179.0,21178.0,2.76102134]
[1673949529281,0.24785737,21179.0,21178.0,3.08945976]
[1673949529564,0.24785737,21179.0,21178.0,3.61968455]
[1673949530825,0.18175685,21179.0,21178.0,4.15058801]
[1673949531106,0.18175685,21179.0,21178.0,3.97312257]
[1673949531327,0.18175685,21179.0,21178.0,3.81675276]
[1673949531632,0.18175685,21179.0,21178.0,3.43262134]
[1673949532321,0.18175685,21179.0,21178.0,4.14405727]
[1673949532584,0.18175685,21179.0,21178.0,3.97206545]
[1673949532836,0.18175685,21179.0,21178.0,4.1440581]
[1673949533346,0.18175685,21179.0,21178.0,3.97206545]
[1673949533601,0.18175685,21179.0,21178.0,2.76152134]
[1673949533818,0.18175685,21179.0,21178.0,2.62014613]
[1673949535143,0.18175685,21179.0,21178.0,2.94752743]
[1673949535411,0.18175685,21179.0,21178.0,2.50844613]
[1673949535898,0.18175685,21179.0,21178.0,3.03434373]
[1673949536149,0.18175685,21179.0,21178.0,3.0339854]
[1673949536405,0.18175685,21179.0,21178.0,3.03395862]
[1673949536653,0.18175685,21179.0,21178.0,2.86149904]
[1673949536900,0.18175685,21179.0,21178.0,2.64943623]
[1673949537144,0.18175685,21179.0,21178.0,2.86149904]
[1673949537418,0.18175685,21179.0,21178.0,3.03391106]
[1673949537673,0.18175685,21179.0,21178.0,2.86149904]
[1673949537927,0.18175685,21179.0,21178.0,2.64943623]
[1673949538187,0.18175685,21179.0,21178.0,2.50844613]
[1673949539199,0.18175685,21179.0,21178.0,2.50836688]
[1673949539471,0.18175685,21179.0,21178.0,2.09674613]
[1673949539722,0.18175685,21179.0,21178.0,1.86316413]
[1673949541705,0.18175685,21179.0,21178.0,2.16316413]
[1673949543197,0.18175685,21179.0,21178.0,2.16446167]
[1673949544468,0.18175685,21179.0,21178.0,2.27616167]
[1673949545267,0.18175685,21179.0,21178.0,2.41715177]
[1673949545560,0.18175685,21179.0,21178.0,2.53853377]
[1673949545736,0.18175685,21179.0,21178.0,2.39754367]
[1673949545997,0.18175685,21179.0,21178.0,2.27616167]
[1673949546239,0.18175685,21179.0,21178.0,2.41715177]
[1673949546493,0.18175685,21179.0,21178.0,2.53853377]
[1673949546745,0.18175685,21179.0,21178.0,2.41715177]
[1673949547742,0.18175685,21179.0,21178.0,2.27616167]
[1673949548764,0.18175685,21179.0,21178.0,2.41715177]
[1673949549011,0.18175685,21179.0,21178.0,2.53853377]
[1673949549521,0.18175685,21179.0,21178.0,2.30545177]
[1673949550774,0.18175685,21179.0,21178.0,2.163229]
[1673949551285,0.18175685,21179.0,21178.0,2.3042191]
[1673949552265,0.18175685,21179.0,21178.0,2.163229]
[1673949552729,0.18175685,21179.0,21178.0,2.3042191]
[1673949553223,0.18175685,21179.0,21178.0,2.163229]
[1673949553689,0.18175685,21179.0,21178.0,2.3042191]
[1673949554215,0.18175685,21179.0,21178.0,2.67779694]
[1673949554518,0.18175685,21179.0,21178.0,2.30453961]
[1673949555030,0.18175685,21179.0,21178.0,2.78729862]
[1673949556037,0.18175685,21179.0,21178.0,2.48470983]
[1673949556297,0.18175685,21179.0,21178.0,2.64591161]
[1673949557059,0.18175685,21179.0,21178.0,2.50459359]
[1673949558336,0.18175685,21179.0,21178.0,2.787344]
[1673949558599,0.18175685,21179.0,21178.0,2.908726]
[1673949559416,0.18175685,21179.0,21178.0,3.05010121]
[1673949559643,0.18175685,21179.0,21178.0,3.16180121]
[1673949560154,0.0091776,21181.0,21178.0,2.9904508]
[1673949560410,0.0091776,21181.0,21180.0,0.63645042]
[1673949560708,0.0091776,21181.0,21180.0,1.04675235]
[1673949560944,0.0091776,21181.0,21180.0,2.46318135]
[1673949561204,0.2491776,21181.0,21180.0,2.32171311]
[1673949561476,0.2501776,21181.0,21180.0,2.32171311]
[1673949561722,0.2491776,21181.0,21180.0,2.32171311]
[1673949562039,0.2671776,21181.0,21180.0,2.61053355]
[1673949562248,0.2671776,21181.0,21180.0,2.32771311]
[1673949563751,0.2671776,21181.0,21180.0,2.61053355]
[1673949564003,0.2671776,21181.0,21180.0,2.72213355]
[1673949565305,0.2671776,21181.0,21180.0,3.31935079]
[1673949565517,0.2671776,21181.0,21180.0,2.75130054]
[1673949565769,0.2671776,21181.0,21180.0,3.07736722]
[1673949566547,0.2491776,21181.0,21180.0,3.07136722]
[1673949566805,0.2501776,21181.0,21180.0,3.49987805]
[1673949567055,0.2491776,21181.0,21180.0,3.09881137]
[1673949567308,0.2501776,21181.0,21180.0,3.17381137]
[1673949567566,0.2501776,21181.0,21180.0,2.82030054]
[1673949567848,0.2501776,21181.0,21180.0,3.78256496]
[1673949568114,0.2501776,21181.0,21180.0,3.45649828]
[1673949569093,0.2501776,21181.0,21180.0,3.10305509]
[1673949569347,0.2501776,21181.0,21180.0,3.17374373]
[1673949571855,0.2501776,21181.0,21180.0,3.31497217]
[1673949572108,0.2501776,21181.0,21180.0,2.92170267]
[1673949572373,0.2501776,21181.0,21180.0,2.87100304]
[1673949572652,0.2501776,21181.0,21180.0,3.08298993]
[1673949575523,0.2501776,21181.0,21180.0,2.56845593]
[1673949576550,0.25053714,21181.0,21180.0,2.34525593]
[1673949576816,0.2501776,21181.0,21180.0,2.34525593]
[1673949577568,0.2491776,21181.0,21180.0,2.12893176]
[1673949577820,0.2511776,21181.0,21180.0,2.19693176]
[1673949578083,0.2491776,21181.0,21180.0,2.12893176]
[1673949578304,0.2511776,21181.0,21180.0,2.19793176]
[1673949578556,0.2491776,21181.0,21180.0,2.12893176]
[1673949578816,0.2511776,21181.0,21180.0,2.19793176]
[1673949579043,0.25108405,21181.0,21180.0,2.19793176]
[1673949580327,0.57289005,21181.0,21180.0,2.19793176]
[1673949581075,0.25108405,21181.0,21180.0,2.19793176]
[1673949581295,0.57289005,21181.0,21180.0,2.19793176]